bitfinex/quotes_SOLUSD_20241116
["timestamp","ask_amount","ask_price","bid_price","bid_amount"]
[1731755391669,8.8611285,218.29,218.22,4.5825]
[1731755391994,8.8611285,218.29,218.22,13.4436285]
[1731755392183,8.8611285,218.3,218.23,8.8611285]
[1731755392487,4.5803,218.33,218.25,8.8611285]
[1731755392697,8.8611285,218.31,218.24,8.8611285]
[1731755393388,4.5803,218.33,218.22,4.5825]
[1731755393389,8.8611285,218.3,218.23,8.8611285]
[1731755394480,8.8611285,218.3,218.18,8.93861229]
[1731755394681,8.8611285,218.3,218.24,0.11]
[1731755395076,35.444514,218.35,218.24,0.11]
[1731755395077,8.8611285,218.28,218.24,0.11]
[1731755395388,32.6380125,218.26,218.24,0.11]
[1731755395782,32.6380125,218.25,218.24,0.11]
[1731755396091,32.6380125,218.25,218.2,0.11]
[1731755396092,23.776884,218.25,218.2,0.11]
[1731755397190,23.776884,218.25,218.19,8.8611285]
[1731755398365,32.6380125,218.25,218.18,8.8611285]
[1731755399770,32.6380125,218.25,218.19,4.5831]
[1731755400686,8.8611285,218.21,218.17,26.5301]
[1731755400893,23.776884,218.24,218.17,26.5301]
[1731755400894,8.8611285,218.22,218.17,26.5301]
[1731755401190,23.776884,218.22,218.17,26.5301]
[1731755401569,23.776884,218.28,218.2,8.8611285]
[1731755401874,23.776884,218.26,218.21,13.4438285]
[1731755402187,23.776884,218.26,218.21,4.5827]
[1731755404596,32.6380125,218.27,218.21,13.4438285]
[1731755405175,23.776884,218.27,218.21,13.4438285]
[1731755405374,32.6380125,218.28,218.21,13.4438285]
[1731755405577,4.5802,218.33,218.23,8.8611285]
[1731755405795,4.5802,218.33,218.24,8.8611285]
[1731755405970,8.8611285,218.31,218.24,8.8611285]
[1731755406796,32.6380125,218.3,218.23,8.8611285]
[1731755408401,32.6380125,218.31,218.24,4.5821]
[1731755408697,8.8611285,218.3,218.24,4.5821]
[1731755409099,23.776884,218.29,218.24,4.5821]
[1731755410611,23.776884,218.29,218.22,8.8611285]
[1731755410612,32.6380125,218.29,218.22,8.8611285]
[1731755411284,8.8611285,218.25,218.19,4.5831]
[1731755411504,8.8611285,218.25,218.2,5.61]
[1731755411883,8.8611285,218.26,218.2,5.61]
[1731755412600,8.8611285,218.26,218.21,4.5827]
[1731755414181,28.357984,218.29,218.21,8.8611285]
[1731755414408,23.776884,218.27,218.21,8.8611285]
[1731755415398,24.5802,218.33,218.21,8.8611285]
[1731755415704,8.8611285,218.29,218.22,8.8611285]
[1731755416200,8.8611285,218.3,218.23,8.8611285]
[1731755416392,8.8611285,218.29,218.23,4.5823]
[1731755416700,4.5798,218.35,218.24,24.2773285]
[1731755417002,8.8611285,218.33,218.25,8.8611285]
[1731755417194,8.8611285,218.3,218.24,15.4162]
[1731755417895,8.8611285,218.3,218.24,19.9982]
[1731755418699,8.8611285,218.29,218.24,19.9982]
[1731755419211,8.8611285,218.3,218.24,19.9982]
[1731755420197,24.67297462,218.37,218.24,28.8593285]
[1731755420404,8.8611285,218.3,218.24,19.9982]
[1731755421714,8.8611285,218.29,218.25,23.776884]
[1731755421909,8.8611285,218.28,218.25,23.776884]
[1731755423006,8.8611285,218.26,218.25,23.776884]
[1731755425786,8.8611285,218.27,218.23,23.776884]
[1731755426592,8.8611285,218.26,218.23,23.776884]
[1731755427612,8.8611285,218.26,218.23,4.5823]
[1731755427810,8.8611285,218.26,218.24,23.776884]
[1731755430193,8.8611285,218.27,218.24,23.776884]
[1731755431732,8.8611285,218.26,218.24,23.776884]
[1731755433104,8.8611285,218.26,218.23,4.5823]
[1731755433302,8.8611285,218.26,218.21,23.776884]
[1731755433608,8.8611285,218.25,218.21,28.359384]
[1731755433810,8.8611285,218.26,218.21,28.359384]
[1731755434624,8.8611285,218.26,218.21,23.776884]
[1731755436898,8.8611285,218.25,218.22,4.5825]
[1731755437096,8.8611285,218.25,218.23,23.776884]
[1731755437507,0.09367462,218.31,218.23,23.776884]
[1731755437696,8.8611285,218.26,218.23,23.776884]
[1731755439313,4.5797,218.36,218.25,32.6380125]
[1731755439530,4.5797,218.36,218.27,32.6380125]
[1731755439695,8.8611285,218.34,218.27,32.6380125]
[1731755440198,8.8611285,218.34,218.29,23.776884]
[1731755440400,8.8611285,218.35,218.29,23.776884]
[1731755441418,8.8611285,218.34,218.29,23.776884]
[1731755442519,8.8611285,218.34,218.3,23.776884]
[1731755443405,8.8611285,218.35,218.3,4.5807]
[1731755443803,8.8611285,218.36,218.3,4.5807]
[1731755444025,8.8611285,218.35,218.3,4.5807]
[1731755444406,20.0,218.4,218.31,23.776884]
[1731755444618,8.8611285,218.36,218.31,23.776884]
[1731755445518,8.8611285,218.36,218.31,4.5805]
[1731755445823,8.8611285,218.37,218.32,23.776884]
[1731755446199,8.8611285,218.38,218.32,23.776884]
[1731755446707,8.8611285,218.36,218.32,23.776884]
[1731755446919,8.8611285,218.36,218.31,4.5805]
[1731755446920,8.8611285,218.35,218.31,4.5805]
[1731755447619,8.8611285,218.35,218.3,23.776884]
[1731755447831,8.8611285,218.36,218.3,23.776884]
[1731755448004,8.8611285,218.33,218.3,23.776884]
[1731755448416,8.8611285,218.32,218.29,4.581]
[1731755449305,8.8611285,218.33,218.28,15.3456]
[1731755449518,8.8611285,218.32,218.28,15.3456]
[1731755450106,8.8611285,218.3,218.26,23.776884]
[1731755450429,8.8611285,218.3,218.26,23.856884]
[1731755450727,8.8611285,218.3,218.26,0.08]
[1731755450932,8.8611285,218.3,218.25,4.5817]
[1731755451236,8.8611285,218.3,218.24,6.4314]
[1731755451912,8.8611285,218.3,218.25,23.776884]
[1731755452324,8.8611285,218.3,218.26,4.5816]
[1731755452626,8.8611285,218.29,218.25,23.776884]
[1731755453203,8.8611285,218.3,218.25,23.776884]
[1731755453626,8.8611285,218.29,218.25,23.776884]
[1731755453930,8.8611285,218.29,218.23,23.776884]
[1731755454834,8.8611285,218.29,218.24,4.5821]
[1731755455132,8.8611285,218.29,218.25,23.776884]
[1731755455519,8.8611285,218.3,218.25,23.776884]
[1731755455716,4.5804,218.33,218.25,23.776884]
[1731755455917,8.8611285,218.31,218.23,23.776884]
[1731755456117,8.8611285,218.31,218.24,8.8611285]
[1731755456429,8.8611285,218.3,218.23,32.6380125]
[1731755456630,4.5804,218.33,218.25,8.8611285]
[1731755456813,8.8611285,218.32,218.23,23.776884]
[1731755457009,8.8611285,218.32,218.26,4.5816]
[1731755457515,0.09367462,218.34,218.26,4.5816]
[1731755457719,8.8611285,218.32,218.26,4.5816]
[1731755458117,8.8611285,218.31,218.26,4.5816]
[1731755458722,8.8611285,218.31,218.24,13.4432285]
[1731755460307,8.8611285,218.3,218.24,4.5821]
[1731755460506,4.5802,218.33,218.24,13.4432285]
[1731755460507,8.8611285,218.31,218.24,13.4432285]
[1731755460733,8.8611285,218.3,218.24,4.5821]
[1731755460937,8.8611285,218.28,218.24,4.5821]
[1731755461117,8.8611285,218.29,218.24,4.5821]
[1731755462127,8.8611285,218.28,218.23,4.5823]
[1731755463852,8.8611285,218.25,218.21,4.5825]
[1731755464510,8.8611285,218.26,218.21,4.5825]
[1731755464717,8.8611285,218.29,218.22,8.8611285]
[1731755464916,4.5806,218.32,218.22,8.8611285]
[1731755465117,8.8611285,218.27,218.21,13.4436285]
[1731755465333,8.8611285,218.27,218.21,4.5825]
[1731755465516,8.8611285,218.25,218.21,4.5825]
[1731755466136,8.8611285,218.22,218.19,4.5829]
[1731755466634,8.8611285,218.23,218.19,4.5829]
[1731755467249,8.8611285,218.24,218.19,4.5829]
[1731755468330,8.8611285,218.21,218.17,15.8539]
[1731755468520,8.8611285,218.2,218.17,15.8539]
[1731755469040,8.8611285,218.2,218.18,4.5833]
[1731755469747,8.8611285,218.2,218.15,23.776884]
[1731755470528,8.8611285,218.19,218.15,23.776884]
[1731755471136,8.8611285,218.2,218.15,23.776884]
[1731755472127,8.8611285,218.18,218.12,15.8539]
[1731755472327,8.8611285,218.17,218.14,4.584]
[1731755473729,8.8611285,218.18,218.14,4.584]
[1731755475860,8.8611285,218.19,218.14,4.584]
[1731755476039,8.8611285,218.2,218.14,4.584]
[1731755477539,4.67607462,218.23,218.14,13.4451285]
[1731755477738,8.8611285,218.2,218.14,4.584]
[1731755479040,16.2475,218.25,218.15,23.776884]
[1731755479241,8.8611285,218.22,218.15,32.6380125]
[1731755479441,8.8611285,218.22,218.15,23.776884]
[1731755479629,8.8611285,218.23,218.16,8.8611285]
[1731755479846,8.8611285,218.25,218.18,32.6380125]
[1731755480745,8.8611285,218.26,218.19,8.8611285]
[1731755480942,8.8611285,218.26,218.18,23.776884]
[1731755480943,6.4959,218.34,218.22,8.8611285]
[1731755481141,8.8611285,218.31,218.24,8.8611285]
[1731755482068,8.8611285,218.31,218.25,4.5819]
[1731755482353,6.4959,218.39,218.27,8.8611285]
[1731755482354,8.8611285,218.34,218.27,8.8611285]
[1731755482562,8.8611285,218.35,218.28,8.8611285]
[1731755483057,8.8611285,218.35,218.26,23.776884]
[1731755483058,8.8611285,218.35,218.27,8.8611285]
[1731755483256,8.8611285,218.34,218.28,4.5812]
[1731755485852,4.67327462,218.36,218.28,4.5812]
[1731755486157,8.8611285,218.34,218.28,4.5812]
[1731755486458,8.8611285,218.29,218.21,8.8611285]
[1731755486659,8.8611285,218.29,218.22,8.8611285]
[1731755487055,8.8611285,218.29,218.23,4.5823]
[1731755488458,8.8611285,218.27,218.19,8.8611285]
[1731755488644,8.8611285,218.25,218.18,13.4444285]
[1731755489042,8.8611285,218.24,218.18,4.5833]
[1731755490444,8.8611285,218.23,218.18,4.5833]
[1731755490648,8.8611285,218.21,218.16,4.5836]
[1731755490849,8.8611285,218.2,218.14,20.6477]
[1731755491040,8.8611285,218.19,218.14,20.6477]
[1731755491446,0.09367462,218.29,218.14,20.6477]
[1731755491447,8.8611285,218.21,218.14,20.6477]
[1731755492447,8.8611285,218.2,218.14,4.584]
[1731755494149,8.8611285,218.21,218.14,13.4451285]
[1731755494544,8.8611285,218.22,218.14,13.4451285]
[1731755494855,8.8611285,218.25,218.17,8.8611285]
[1731755495170,8.8611285,218.25,218.18,4.5833]
[1731755496160,8.8611285,218.24,218.18,4.5833]
[1731755497152,6.3181,218.3,218.2,8.8611285]
[1731755497358,4.5808,218.31,218.19,23.776884]
[1731755497359,8.8611285,218.29,218.21,8.8611285]
[1731755497753,8.8611285,218.28,218.2,8.8611285]
[1731755497953,8.8611285,218.28,218.21,23.776884]
[1731755498456,8.8611285,218.28,218.22,4.5825]
[1731755503657,8.8611285,218.29,218.22,4.5825]
[1731755504752,20.0,218.34,218.23,32.6380125]
[1731755504958,8.8611285,218.32,218.25,23.776884]
[1731755505659,8.8611285,218.31,218.25,23.776884]
[1731755505858,8.8611285,218.31,218.26,4.5816]
[1731755508478,8.8611285,218.32,218.26,4.5816]
[1731755508861,4.5791,218.38,218.26,4.5816]
[1731755508862,8.8611285,218.33,218.26,4.5816]
[1731755509256,0.34465462,218.37,218.26,13.4427285]
[1731755509475,8.8611285,218.34,218.26,13.4427285]
[1731755509674,8.8611285,218.33,218.26,4.5816]
[1731755510468,8.8611285,218.31,218.26,4.5816]
[1731755513767,8.8611285,218.3,218.24,4.5819]
[1731755519567,16.0233,218.39,218.27,32.6380125]
[1731755519764,16.0233,218.39,218.25,39.581784]
[1731755519765,24.5783,218.42,218.3,8.8611285]
[1731755519964,8.8611285,218.37,218.3,8.8611285]
[1731755520176,8.8611285,218.36,218.29,8.8611285]
[1731755520781,8.8611285,218.33,218.27,23.776884]
[1731755521096,8.8611285,218.32,218.25,48.4429125]
[1731755521775,8.8611285,218.32,218.27,23.776884]
[1731755522487,8.8611285,218.31,218.27,23.776884]
[1731755522728,8.8611285,218.31,218.27,28.358184]
[1731755528507,8.8611285,218.32,218.27,28.358184]
[1731755529201,0.09367462,218.39,218.27,28.358184]
[1731755529503,8.8611285,218.32,218.27,28.358184]
[1731755529887,8.8611285,218.32,218.27,4.5813]
[1731755530091,4.5798,218.35,218.27,4.5813]
[1731755530287,8.8611285,218.33,218.27,4.5813]
[1731755531891,0.09367462,218.37,218.27,13.4424285]
[1731755532101,8.8611285,218.34,218.27,13.4424285]
[1731755533920,13.4407285,218.36,218.29,8.8611285]
[1731755534101,8.8611285,218.34,218.27,8.8611285]
[1731755534301,8.8611285,218.34,218.26,8.8611285]
[1731755536086,8.8611285,218.34,218.27,4.5814]
[1731755536391,8.8611285,218.33,218.27,4.5814]
[1731755539098,8.8611285,218.34,218.27,4.5814]
[1731755540805,4.5798,218.35,218.28,8.8611285]
[1731755541003,8.8611285,218.34,218.28,4.581]
[1731755542113,8.8611285,218.33,218.28,4.581]
[1731755542613,8.8611285,218.32,218.25,24.6660285]
[1731755542816,8.8611285,218.33,218.25,24.6660285]
[1731755543193,8.8611285,218.33,218.25,15.8049]
[1731755543701,13.4413285,218.33,218.26,4.5816]
[1731755544011,8.8611285,218.31,218.25,15.8049]
[1731755544213,8.8611285,218.29,218.25,15.8049]
[1731755544418,8.8611285,218.29,218.23,4.5822]
[1731755547007,0.09367462,218.33,218.23,13.4433285]
[1731755547192,8.8611285,218.3,218.23,13.4433285]
[1731755547389,8.8611285,218.31,218.24,8.8611285]
[1731755548192,8.8611285,218.3,218.23,13.4433285]
[1731755548607,8.8611285,218.3,218.23,4.5822]
[1731755550210,13.4419285,218.31,218.23,13.4433285]
[1731755555402,13.4419285,218.31,218.24,8.8611285]
[1731755557413,13.4419285,218.31,218.24,13.4431285]
[1731755559427,177.8968,218.36,218.24,13.4431285]
[1731755559428,7.13934481,218.38,218.3,8.8611285]
[1731755559604,8.8611285,218.37,218.28,15.6768]
[1731755559807,0.09367462,218.37,218.3,8.8611285]
[1731755560814,4.67307462,218.37,218.3,13.4419285]
[1731755562419,7.13934481,218.39,218.33,8.8611285]
[1731755562619,4.579,218.39,218.34,8.8611285]
[1731755563217,4.5787,218.41,218.34,8.8611285]
[1731755564022,8.8611285,218.4,218.33,8.8611285]
[1731755564345,13.4399285,218.4,218.33,8.8611285]
[1731755564843,13.4399285,218.4,218.32,13.4415285]
[1731755565616,7.13934481,218.42,218.32,13.4415285]
[1731755565617,13.4401285,218.39,218.32,13.4415285]
[1731755565832,8.8611285,218.37,218.3,13.4419285]
[1731755566016,8.8611285,218.36,218.3,4.5808]
[1731755566346,8.8611285,218.37,218.3,13.4419285]
[1731755566533,4.579,218.39,218.31,8.8611285]
[1731755566534,8.8611285,218.38,218.31,8.8611285]
[1731755566738,8.8611285,218.37,218.3,13.4419285]
[1731755567625,7.13934481,218.42,218.29,6.2578]
[1731755567626,8.8611285,218.34,218.29,6.2578]
[1731755567940,8.8611285,218.34,218.28,15.6768]
[1731755568637,8.8611285,218.34,218.28,20.2579]
[1731755569720,7.13934481,218.39,218.28,15.6768]
[1731755569930,8.8611285,218.3,218.25,4.5819]
[1731755570446,8.8611285,218.28,218.23,15.6768]
[1731755571627,8.8611285,218.28,218.23,20.259]
[1731755572336,8.8611285,218.28,218.19,21.9346]
[1731755572337,8.8611285,218.24,218.19,21.9346]
[1731755572752,8.8611285,218.24,218.19,15.6768]
[1731755573419,8.8611285,218.24,218.17,8.8611285]
[1731755573420,8.8611285,218.23,218.14,24.519556]
[1731755573623,8.8611285,218.21,218.14,30.8550285]
[1731755574120,8.8611285,218.22,218.15,4.584]
[1731755574339,8.8611285,218.25,218.19,8.8611285]
[1731755576338,4.5808,218.3,218.2,8.8611285]
[1731755576646,8.8611285,218.27,218.2,8.8611285]
[1731755577930,13.4425285,218.27,218.2,8.8611285]
[1731755578132,13.4425285,218.27,218.2,8.8363285]
[1731755579344,13.4425285,218.27,218.21,8.8611285]
[1731755579652,13.4425285,218.27,218.2,8.8611285]
[1731755580228,8.8611285,218.26,218.19,8.8611285]
[1731755580430,8.8611285,218.24,218.17,8.8611285]
[1731755580730,8.8611285,218.22,218.16,4.5837]
[1731755582047,8.8611285,218.21,218.14,30.8550285]
[1731755582343,8.8611285,218.2,218.15,4.584]
[1731755582753,8.8611285,218.19,218.14,21.9939]
[1731755583051,8.8611285,218.19,218.14,20.3784]
[1731755583351,8.8611285,218.17,218.12,4.5845]
[1731755583526,35.444514,218.24,218.09,21.9939]
[1731755583527,8.8611285,218.14,218.1,4.5849]
[1731755584150,8.8611285,218.13,218.09,15.7943]
[1731755584356,8.8611285,218.1,218.06,4.5857]
[1731755584555,8.8611285,218.09,218.06,4.5857]
[1731755584856,8.8611285,218.09,218.03,16.0992512]
[1731755585055,8.8611285,218.08,218.03,16.0992512]
[1731755586151,8.8611285,218.07,218.03,0.3049512]
[1731755586338,8.8611285,218.06,218.03,0.3049512]
[1731755587753,8.8611285,218.07,218.03,0.3049512]
[1731755588340,4.5846,218.12,218.03,4.8913512]
[1731755588341,8.8611285,218.08,218.03,4.8913512]
[1731755590227,8.8611285,218.06,218.03,4.8913512]
[1731755590649,8.8611285,218.07,218.03,4.8913512]
[1731755591358,8.8611285,218.1,218.03,13.7524797]
[1731755592034,8.8611285,218.09,218.03,4.8913512]
[1731755593363,8.8611285,218.09,218.03,13.7524797]
[1731755593860,161.7,218.17,218.03,13.7524797]
[1731755594063,8.8611285,218.11,218.04,8.8611285]
[1731755595160,8.8611285,218.1,218.05,4.5861]
[1731755595962,8.8611285,218.1,218.03,9.1660797]
[1731755597659,0.12549,218.12,218.03,0.3049512]
[1731755597860,24.12153862,218.15,218.03,0.3049512]
[1731755598165,8.8611285,218.07,218.03,0.3049512]
[1731755598762,24.027864,218.15,218.03,0.3049512]
[1731755598763,35.444514,218.13,218.03,0.3049512]
[1731755598971,8.8611285,218.06,218.03,0.3049512]
[1731755599161,8.8611285,218.07,218.03,0.3049512]
[1731755599354,8.8611285,218.08,218.03,0.3049512]
[1731755599555,0.12549,218.11,218.03,0.3049512]
[1731755599857,8.8611285,218.08,218.03,0.3049512]
[1731755600158,8.8611285,218.1,218.03,13.7525797]
[1731755600456,8.8611285,218.11,218.04,8.8611285]
[1731755600656,8.8611285,218.11,218.03,13.7525797]
[1731755600954,8.8611285,218.11,218.03,9.1660797]
[1731755601336,8.8611285,218.11,218.04,8.8611285]
[1731755602045,8.8611285,218.11,218.05,4.5861]
[1731755602453,4.5842,218.14,218.05,4.5861]
[1731755602649,8.8611285,218.12,218.05,13.4472285]
[1731755603739,8.8611285,218.11,218.05,4.5861]
[1731755605161,8.8611285,218.06,218.03,0.3049512]
[1731755605372,0.12549,218.1,218.03,0.3049512]
[1731755605373,8.8611285,218.04,218.03,0.3049512]
[1731755607457,4.5861,218.05,218.03,0.3049512]
[1731755607977,8.8611285,218.04,218.03,0.3049512]
[1731755609969,9.20578312,218.04,218.03,0.3049512]
[1731755610169,88.42718112,218.04,218.03,0.3049512]
[1731755611875,88.42718112,218.04,218.0,1.52]
[1731755611876,0.09367462,218.01,218.0,1.52]
[1731755612076,9.20578312,218.01,218.0,1.52]
[1731755613073,13.79268312,218.01,218.0,1.52]
[1731755623579,33.79268312,218.01,218.0,1.52]
[1731755623786,8.8611285,217.92,217.89,4.5893]
[1731755624005,8.8611285,217.9,217.88,21.9829]
[1731755624287,161.7,218.0,217.88,21.9829]
[1731755624590,8.8611285,217.9,217.88,20.254]
[1731755624887,8.8611285,217.9,217.88,15.6644]
[1731755625466,4.5883,217.95,217.88,15.6644]
[1731755625667,8.8611285,217.9,217.88,15.6644]
[1731755625990,8.8611285,217.89,217.88,15.6644]
[1731755627804,8.8611285,217.89,217.83,19.8069]
[1731755627993,8.8611285,217.85,217.83,15.2162]
[1731755628204,8.8611285,217.84,217.82,5.1098288]
[1731755628507,8.8611285,217.83,217.82,0.5190288]
[1731755634698,0.09367462,217.92,217.82,0.5190288]
[1731755634904,8.8611285,217.83,217.82,0.5190288]
[1731755640889,24.68247462,217.92,217.82,0.5190288]
[1731755641083,8.8611285,217.83,217.82,0.5190288]
[1731755642285,8.8611285,217.85,217.82,5.1097288]
[1731755643689,8.8611285,217.84,217.82,5.1097288]
[1731755645385,8.8611285,217.84,217.82,0.5190288]
[1731755646554,40.033514,217.91,217.82,0.5190288]
[1731755646697,8.8611285,217.85,217.82,0.5190288]
[1731755647713,186.2875,217.98,217.84,8.8611285]
[1731755647905,8.8611285,217.92,217.85,8.8611285]
[1731755648617,8.8611285,217.91,217.85,8.8611285]
[1731755648796,8.8611285,217.91,217.84,8.8611285]
[1731755649314,8.8611285,217.91,217.85,4.5903]
[1731755650190,8.8611285,217.91,217.85,13.4514285]
[1731755650400,8.8611285,217.89,217.82,9.3801573]
[1731755652023,8.8611285,217.9,217.83,8.8611285]
[1731755652228,8.8611285,217.92,217.85,8.8611285]
[1731755654806,8.8611285,217.92,217.87,4.5898]
[1731755655010,8.8611285,217.91,217.87,4.5898]
[1731755656409,8.8611285,217.91,217.84,8.8611285]
[1731755656599,8.8611285,217.91,217.85,4.5903]
[1731755658929,8.8611285,217.92,217.85,8.8611285]
[1731755660740,175.54953792,218.05,217.89,8.8611285]
[1731755661024,8.8611285,217.98,217.91,8.8611285]
[1731755661238,8.8611285,217.97,217.9,8.8611285]
[1731755661812,8.8611285,217.97,217.91,4.589]
[1731755662130,161.8,218.05,217.91,13.4501285]
[1731755662131,8.8611285,217.98,217.91,13.4501285]
[1731755662437,161.7,218.05,217.92,8.8611285]
[1731755662616,8.8611285,218.03,217.95,8.8611285]
[1731755663124,8.8611285,218.02,217.95,8.8611285]
[1731755663310,8.8611285,218.01,217.94,8.8611285]
[1731755663725,8.8611285,218.01,217.95,4.5882]
[1731755664614,8.8611285,218.0,217.95,4.5882]
[1731755665810,8.8611285,218.01,217.95,4.5882]
[1731755666010,8.8611285,218.01,217.94,8.8611285]
[1731755666510,4.5863,218.04,217.94,8.8611285]
[1731755666712,8.8611285,218.01,217.9,24.12153862]
[1731755667021,8.8611285,218.01,217.93,8.8611285]
[1731755667326,8.8611285,217.98,217.92,23.776884]
[1731755667531,8.8611285,217.99,217.92,32.6380125]
[1731755668104,8.8611285,217.98,217.91,13.4499285]
[1731755668308,8.8611285,217.95,217.89,4.5892]
[1731755668508,4.5872,218.0,217.89,4.5892]
[1731755668509,8.8611285,217.96,217.89,13.4503285]
[1731755668915,8.8611285,217.97,217.9,8.8611285]
[1731755670328,13.4487285,217.98,217.91,8.8611285]
[1731755670747,8.8611285,217.97,217.9,13.4502285]
[1731755672135,8.8611285,217.97,217.9,8.8611285]
[1731755672329,8.8611285,217.96,217.89,8.8611285]
[1731755672945,8.8611285,217.95,217.88,13.4507285]
[1731755673235,8.8611285,217.91,217.87,16.3555]
[1731755673436,8.8611285,217.91,217.84,8.8611285]
[1731755674537,13.4501285,217.91,217.84,13.4515285]
[1731755675417,8.8611285,217.9,217.84,13.4515285]
[1731755676582,8.8611285,217.91,217.84,13.4515285]
[1731755676716,8.8611285,217.91,217.85,8.8611285]
[1731755676915,8.8611285,217.92,217.85,8.8611285]
[1731755677937,8.8611285,217.92,217.86,8.8611285]
[1731755678139,8.8611285,217.94,217.87,8.8611285]
[1731755678517,8.8611285,217.94,217.88,8.8611285]
[1731755679135,8.8611285,217.94,217.88,13.4506285]
[1731755679331,4.5879,217.97,217.9,8.8611285]
[1731755679538,8.8611285,217.97,217.9,8.8611285]
[1731755680729,8.8611285,217.97,217.9,13.4502285]
[1731755684341,8.8611285,217.96,217.83,28.618564]
[1731755684522,8.8611285,217.96,217.89,8.8611285]
[1731755685343,4.80626462,218.0,217.9,8.8611285]
[1731755685344,4.68077462,218.0,217.9,8.8611285]
[1731755685642,8.8611285,217.97,217.9,8.8611285]
[1731755686149,8.8611285,217.97,217.9,13.4503285]
[1731755686334,8.8611285,217.96,217.9,4.5892]
[1731755689142,13.4492285,217.96,217.89,8.8611285]
[1731755689342,8.8611285,217.92,217.84,4.5905]
[1731755689645,8.8611285,217.92,217.85,8.8611285]
[1731755689948,8.8611285,217.95,217.84,4.5905]
[1731755690145,8.8611285,217.95,217.88,8.8611285]
[1731755690529,11.56207462,218.0,217.88,8.8611285]
[1731755690530,8.8611285,217.94,217.88,8.8611285]
[1731755691031,8.8611285,217.94,217.87,8.8611285]
[1731755691235,8.8611285,217.92,217.86,4.59]
[1731755691432,8.8611285,217.92,217.86,13.4511285]
[1731755692030,8.8611285,217.92,217.86,8.8611285]
[1731755692228,8.8611285,217.91,217.85,8.8611285]
[1731755692633,4.5892,217.9,217.85,8.8611285]
[1731755693337,4.5892,217.9,217.84,11.4763]
[1731755693538,4.5892,217.9,217.85,8.8611285]
[1731755693923,8.8611285,217.93,217.86,8.8611285]
[1731755694423,8.8611285,217.92,217.85,8.8611285]
[1731755694730,8.8611285,217.91,217.84,20.3374285]
[1731755695044,8.8611285,217.89,217.82,31.5147573]
[1731755695348,8.8611285,217.89,217.83,8.8611285]
[1731755695932,13.4507285,217.89,217.83,8.8611285]
[1731755697047,8.8611285,217.9,217.83,8.8611285]
[1731755697650,4.5882,217.95,217.84,8.8611285]
[1731755697948,8.8611285,217.93,217.86,8.8611285]
[1731755698145,8.8611285,217.92,217.85,8.8611285]
[1731755698841,4.589,217.91,217.85,8.8611285]
[1731755699847,8.8611285,217.9,217.83,13.4516285]
[1731755700033,4.5886,217.93,217.85,8.8611285]
[1731755700352,8.8611285,217.91,217.84,8.8611285]
[1731755700554,8.8611285,217.88,217.82,34.1304288]
[1731755700857,8.8611285,217.88,217.82,27.8412288]
[1731755701056,8.8611285,217.89,217.82,36.7023573]
[1731755701855,4.5896,217.88,217.82,36.7023573]
[1731755702438,4.5896,217.88,217.83,8.8611285]
[1731755702756,13.4505285,217.9,217.83,8.8611285]
[1731755703260,13.4505285,217.9,217.84,8.8611285]
[1731755703456,4.5894,217.9,217.84,8.8611285]
[1731755704032,8.8611285,217.9,217.83,8.8611285]
[1731755704235,4.5882,217.95,217.83,8.8611285]
[1731755704554,8.8611285,217.91,217.84,8.8611285]
[1731755705037,8.8611285,217.9,217.84,8.8611285]
[1731755705339,13.4505285,217.9,217.83,8.8611285]
[1731755706063,8.8611285,217.89,217.82,36.7023573]
[1731755706586,13.4507285,217.89,217.82,36.7023573]
[1731755707940,4.5896,217.89,217.84,8.8611285]
[1731755709039,4.5892,217.91,217.85,8.8611285]
[1731755709757,4.5892,217.91,217.86,8.8611285]
[1731755710945,8.8611285,217.91,217.84,8.8611285]
[1731755711147,8.8611285,217.91,217.85,8.8611285]
[1731755711538,8.8611285,217.91,217.84,8.8611285]
[1731755712043,13.4503285,217.9,217.83,11.4768]
[1731755712246,8.8611285,217.87,217.82,16.3644288]
[1731755712447,8.8611285,217.87,217.82,0.5190288]
[1731755713552,4.5892,217.9,217.82,0.5190288]
[1731755713759,8.8611285,217.87,217.82,0.5190288]
[1731755714373,4.5901,217.86,217.82,0.5190288]
[1731755715445,8.8611285,217.86,217.82,0.5190288]
[1731755715643,10.6071,217.91,217.82,0.5190288]
[1731755715954,8.8611285,217.88,217.82,0.5190288]
[1731755716150,8.8611285,217.86,217.82,0.5190288]
[1731755716765,8.8611285,217.87,217.82,0.5190288]
[1731755717071,8.8611285,217.86,217.82,0.5190288]
[1731755717467,13.4512285,217.86,217.82,0.5190288]
[1731755719775,8.8611285,217.83,217.82,0.5190288]
[1731755720552,34.9438285,217.83,217.82,0.5190288]